bitfinex-derivatives/quotes_BNBF0:USTF0_20250128
["timestamp","ask_amount","ask_price","bid_price","bid_amount"]
[1738072548742,0.87086286,671.99,670.82,0.29814257]
[1738072548942,1.15470875,671.98,670.82,0.29814257]
[1738072550044,0.87086286,671.97,670.82,0.29814257]
[1738072551141,0.87086286,672.16,670.82,0.29814257]
[1738072551342,1.15592334,672.15,670.82,0.29814257]
[1738072551543,1.15592334,672.14,670.82,0.29814257]
[1738072551743,1.15592334,672.13,670.82,0.29814257]
[1738072552046,1.15593304,672.12,670.82,0.29814257]
[1738072552247,1.15593304,672.11,670.82,0.29814257]
[1738072552547,1.15593304,672.1,670.82,0.29814257]
[1738072552741,1.15593304,672.09,670.82,0.29814257]
[1738072552945,1.15593304,672.08,670.82,0.29814257]
[1738072553145,1.15593304,672.07,670.86,1.04687993]
[1738072553347,1.15593304,672.06,670.88,0.2981159]
[1738072553847,0.87086286,672.05,670.88,0.2981159]
[1738072554048,1.15593304,672.04,670.88,0.2981159]
[1738072554550,0.87086286,672.03,670.88,0.2981159]
[1738072554742,1.15593304,672.02,670.88,0.2981159]
[1738072555249,0.87086286,672.01,670.88,0.2981159]
[1738072555444,1.15593304,672.0,670.88,0.2981159]
[1738072555748,0.87086286,671.99,670.88,0.2981159]
[1738072556050,1.15593304,671.98,670.89,1.04687993]
[1738072556246,0.87086286,671.97,670.91,0.29810257]
[1738072557148,1.15706007,671.96,670.91,0.29810257]
[1738072557343,0.87086286,671.95,670.91,0.29810257]
[1738072558154,0.87086286,672.16,670.91,0.29810257]
[1738072558353,1.15769767,672.15,670.91,0.29810257]
[1738072558550,1.15769767,672.14,670.92,1.04687993]
[1738072558852,1.15769767,672.13,670.94,0.29808924]
[1738072559054,1.15769767,672.12,670.94,0.29808924]
[1738072559759,0.87086286,672.11,670.94,0.29808924]
[1738072560060,1.15769767,672.1,670.95,1.55405129]
[1738072560961,1.55420745,672.58,670.95,1.55405129]
[1738072561259,1.43155848,672.57,670.95,1.55405129]
[1738072561453,1.55420745,672.58,670.95,1.55405129]
[1738072561454,1.43155848,672.56,670.95,1.55405129]
[1738072561657,1.43156448,672.55,671.15,1.04687993]
[1738072561861,1.55420745,672.58,671.16,0.29799153]
[1738072561862,1.43156448,672.54,671.16,0.29799153]
[1738072562059,1.43156448,672.53,671.16,0.29799153]
[1738072562255,1.43156448,672.52,671.16,0.29799153]
[1738072562462,1.15811073,672.51,671.16,0.29799153]
[1738072562655,1.15811073,672.5,671.16,0.29799153]
[1738072562862,1.15811073,672.49,671.16,0.29799153]
[1738072563063,1.15811073,672.48,671.16,0.29799153]
[1738072563264,1.15811073,672.47,671.16,0.29799153]
[1738072563561,1.15811073,672.46,671.16,0.29799153]
[1738072563761,1.15811073,672.45,671.16,0.29799153]
[1738072564063,2.0315128,672.44,671.16,0.29799153]
[1738072564264,1.15811073,672.43,671.16,0.29799153]
[1738072564464,2.0315128,672.42,671.16,0.29799153]
[1738072564665,1.15811073,672.41,671.16,0.29799153]
[1738072564864,1.15811073,672.4,671.16,0.29799153]
[1738072565164,2.0315128,672.39,671.16,0.29799153]
[1738072565363,1.15811073,672.38,671.16,0.29799153]
[1738072565561,1.15811073,672.37,671.16,0.29799153]
[1738072565756,1.15842433,672.36,671.16,0.29799153]
[1738072566065,2.0318264,672.35,671.16,0.29799153]
[1738072566258,1.15842433,672.34,671.16,0.29799153]
[1738072566458,1.15842433,672.33,671.16,0.29799153]
[1738072566661,1.15842433,672.32,671.16,0.29799153]
[1738072566958,1.15842433,672.31,671.16,0.29799153]
[1738072567160,1.15842433,672.3,671.16,0.29799153]
[1738072567863,0.87340207,672.29,671.16,0.29799153]
[1738072568366,0.87340207,673.21,671.16,0.29799153]
[1738072568556,0.29709294,673.19,671.16,0.29799153]
[1738072568757,1.43200593,673.18,671.16,0.29799153]
[1738072568963,1.43200593,673.17,671.16,0.29799153]
[1738072569162,1.43200593,673.16,671.16,0.29799153]
[1738072569364,1.43200593,673.15,671.16,0.29799153]
[1738072569567,0.27332348,673.14,671.16,0.29799153]
[1738072569866,1.15817572,673.13,671.16,0.29799153]
[1738072570067,1.4314992,673.12,671.16,0.29799153]
[1738072570262,2.30490127,673.11,671.16,0.29799153]
[1738072570460,1.4314992,673.1,671.16,0.29799153]
[1738072570665,1.4314992,673.09,671.23,1.04687993]
[1738072570863,1.4314992,673.08,671.23,1.04687993]
[1738072571059,1.4314992,673.07,671.23,1.04687993]
[1738072571258,1.4314992,673.06,671.23,1.04687993]
[1738072571463,2.30490127,673.05,671.23,1.04687993]
[1738072571664,1.4314992,673.04,671.23,1.04687993]
[1738072572023,2.30490127,673.03,671.23,1.04687993]
[1738072572198,1.15817572,673.02,671.23,1.04687993]
[1738072572393,1.4314992,673.01,671.23,1.04687993]
[1738072572697,2.30490127,673.0,671.23,1.04687993]
[1738072573001,1.4314992,672.99,671.23,1.04687993]
[1738072573193,2.30490127,672.98,671.23,1.04687993]
[1738072573506,1.4314992,672.97,671.23,1.04687993]
[1738072573791,1.4314992,672.97,671.16,0.29799153]
[1738072573792,1.4314992,672.96,671.28,1.04687993]
[1738072573999,2.30489977,672.95,671.28,1.04687993]
[1738072574203,1.4314977,672.94,671.28,1.04687993]
[1738072574396,1.4314977,672.93,671.28,1.04687993]
[1738072574608,1.15817572,672.92,671.28,1.04687993]
[1738072574899,2.30489977,672.91,671.28,1.04687993]
[1738072575091,1.4314977,672.9,671.28,1.04687993]
[1738072575322,1.4314977,672.89,671.3,0.29792939]
[1738072575496,1.4314977,672.88,671.3,0.29792939]
[1738072575698,1.15817572,672.87,671.3,0.29792939]
[1738072575991,1.4314977,672.86,671.3,0.29792939]
[1738072576199,1.15817572,672.85,671.3,0.29792939]
[1738072576396,1.15817572,672.84,671.3,0.29792939]
[1738072576596,1.15817572,672.83,671.3,0.29792939]
[1738072576898,1.15817572,672.82,671.3,0.29792939]
[1738072577101,1.15817572,672.81,671.3,0.29792939]
[1738072577302,1.15817572,672.8,671.3,0.29792939]
[1738072577598,1.15817572,672.79,671.3,0.29792939]
[1738072577798,1.15817572,672.78,671.3,0.29792939]
[1738072577997,2.03157779,672.77,671.3,0.29792939]
[1738072578199,1.15817572,672.76,671.3,0.29792939]
[1738072578396,1.15817572,672.75,671.3,0.29792939]
[1738072578698,1.15817572,672.74,671.3,0.29792939]
[1738072578896,1.15817572,672.73,671.3,0.29792939]
[1738072579196,1.15817572,672.72,671.3,0.29792939]
[1738072579399,2.03157779,672.71,671.3,0.29792939]
[1738072579592,1.15817572,672.7,671.3,0.29792939]
[1738072579795,2.03157779,672.69,671.3,0.29792939]
[1738072580093,1.15817572,672.68,671.3,0.29792939]
[1738072580401,1.15817572,672.67,671.3,0.29792939]
[1738072580603,1.15817572,672.66,671.3,0.29792939]
[1738072580897,1.15817572,672.65,671.3,0.29792939]
[1738072581100,1.15817572,672.64,671.3,0.29792939]
[1738072581300,0.87340207,672.66,671.3,0.29792939]
[1738072581701,1.15397699,672.65,671.3,0.29792939]
[1738072581997,0.27340137,672.64,671.3,0.29792939]
[1738072582400,0.27340137,672.65,671.3,0.29792939]
[1738072582593,0.87340207,672.66,671.3,0.29792939]
[1738072582903,1.42733627,672.65,671.3,0.29792939]
[1738072583103,1.42733627,672.64,671.3,0.29792939]
[1738072583396,1.42733627,672.63,671.3,0.29792939]
[1738072583595,2.30073834,672.62,671.3,0.29792939]
[1738072583792,1.42733627,672.61,671.3,0.29792939]
[1738072583991,1.42733627,672.6,671.3,0.29792939]
[1738072584196,1.42733696,672.59,671.3,0.29792939]
[1738072584487,2.30073903,672.58,671.3,0.29792939]
[1738072584682,1.42733696,672.57,671.3,0.29792939]
[1738072584883,1.42733696,672.56,671.3,0.29792939]
[1738072585087,1.42733696,672.55,671.3,0.29792939]
[1738072585283,2.30073903,672.54,671.3,0.29792939]
[1738072585480,1.42733696,672.53,671.3,0.29792939]
[1738072585680,2.30073903,672.52,671.3,0.29792939]
[1738072585873,1.42733696,672.51,671.3,0.29792939]
[1738072586071,2.30075242,672.5,671.3,0.29792939]
[1738072586266,1.15393379,672.49,671.3,0.29792939]
[1738072586472,1.15393379,672.48,671.3,0.29792939]
[1738072586668,1.15393379,672.47,671.3,0.29792939]
[1738072586973,1.15393379,672.46,671.3,0.29792939]
[1738072587172,2.02733586,672.45,671.3,0.29792939]
[1738072587373,1.15393379,672.44,671.3,0.29792939]
[1738072587574,1.15364092,672.43,671.3,0.29792939]
[1738072587777,2.02704299,672.42,671.3,0.29792939]
[1738072587969,1.15364092,672.41,671.3,0.29792939]
[1738072588174,1.15364092,672.4,671.3,0.29792939]
[1738072588374,1.15364092,672.39,671.3,0.29792939]
[1738072588675,1.15364092,672.38,671.3,0.29792939]
[1738072588875,1.15364092,672.37,671.3,0.29792939]
[1738072589176,1.15364092,672.36,671.3,0.29792939]
[1738072589476,1.15364092,672.35,671.3,0.29792939]
[1738072589774,1.15364092,672.34,671.3,0.29792939]
[1738072590174,0.87340207,672.33,671.3,0.29792939]
[1738072590476,1.15364092,672.32,671.3,0.29792939]
[1738072590774,2.02704299,672.32,671.3,0.29792939]
[1738072590974,1.15364092,672.31,671.3,0.29792939]
[1738072591170,1.15364092,672.3,671.3,0.29792939]
[1738072591374,0.29724307,672.85,671.3,0.29792939]
[1738072591678,1.42699439,672.84,671.3,0.29792939]
[1738072591971,2.59411655,672.83,671.3,0.29792939]
[1738072592175,1.72425071,672.82,671.3,0.29792939]
[1738072592375,1.72425513,672.81,671.3,0.29792939]
[1738072592578,1.72425955,672.8,671.3,0.29792939]
[1738072592773,1.72426396,672.79,671.3,0.29792939]
[1738072592973,1.72426838,672.78,671.3,0.29792939]
[1738072593174,1.42699439,672.77,671.3,0.29792939]
[1738072593375,1.72427722,672.76,671.3,0.29792939]
[1738072593575,1.42699439,672.75,671.3,0.29792939]
[1738072593776,1.42699439,672.74,671.3,0.29792939]
[1738072593976,1.42699439,672.73,671.3,0.29792939]
[1738072594179,1.15359989,672.72,671.3,0.29792939]
[1738072594378,2.02347015,672.71,671.3,0.29792939]
[1738072594679,1.15359989,672.7,671.3,0.29792939]
[1738072594879,1.15359989,672.69,671.3,0.29792939]
[1738072595079,2.02347015,672.68,671.31,1.04687993]
[1738072595273,1.15359989,672.67,671.32,0.29792051]
[1738072595478,2.02347015,672.66,671.32,0.29792051]
[1738072595679,1.15379245,672.65,671.32,0.29792051]
[1738072595881,1.15379245,672.64,671.32,0.29792051]
[1738072596183,1.15379245,672.63,671.32,0.29792051]
[1738072596378,2.02366271,672.62,671.32,0.29792051]
[1738072596581,1.15379245,672.61,671.32,0.29792051]
[1738072596780,1.15379245,672.6,671.32,0.29792051]
[1738072596980,1.15379245,672.59,671.32,0.29792051]
[1738072597177,1.15379245,672.58,671.32,0.29792051]
[1738072597376,2.02366271,672.57,671.32,0.29792051]
[1738072597582,1.15379245,672.56,671.32,0.29792051]
[1738072597782,1.15379245,672.55,671.32,0.29792051]
[1738072597977,1.15379245,672.54,671.34,1.04687993]
[1738072598181,1.15379245,672.53,671.35,0.2979072]
[1738072598381,1.15379245,672.52,671.35,0.2979072]
[1738072598577,1.15379245,672.51,671.35,0.2979072]
[1738072598783,2.02366271,672.5,671.35,0.2979072]
[1738072598978,1.15379245,672.49,671.35,0.2979072]
[1738072599482,0.86987026,672.48,671.35,0.2979072]
[1738072599689,1.15379245,672.47,671.35,0.2979072]
[1738072600084,0.86987026,672.46,671.35,0.2979072]
[1738072600279,1.15379245,672.45,671.35,0.2979072]
[1738072600783,0.86987026,672.44,671.35,0.2979072]
[1738072600977,1.15379245,672.43,671.35,0.2979072]
[1738072601785,1.15379245,672.43,671.38,1.04687993]
[1738072601786,0.86987026,672.42,671.38,1.04687993]
[1738072601985,1.15379245,672.41,671.39,0.29788945]
[1738072602286,0.86987026,672.4,671.39,0.29788945]
[1738072602583,1.15379245,672.39,671.39,0.29788945]
[1738072603485,0.86987026,672.38,671.39,0.29788945]
[1738072603685,1.15379245,672.37,671.39,0.29788945]
[1738072604185,0.86987026,672.36,671.39,0.29788945]
[1738072604485,1.15379245,672.35,671.39,0.29788945]
[1738072604881,1.15379245,672.35,671.42,1.04687993]
[1738072605081,0.86987026,672.34,671.43,0.2978717]
[1738072605785,0.86987026,672.69,671.43,0.2978717]
[1738072605986,1.15735551,672.68,671.43,0.2978717]
[1738072606191,1.15735551,672.67,671.43,0.2978717]
[1738072606381,1.15735551,672.66,671.43,0.2978717]
[1738072606584,1.15735551,672.65,671.43,0.2978717]
[1738072606781,1.15735551,672.64,671.43,0.2978717]
[1738072607087,1.15735551,672.63,671.43,0.2978717]
[1738072607287,1.15735551,672.62,671.43,0.2978717]
[1738072607487,1.15735551,672.61,671.43,0.2978717]
[1738072607688,1.158175,672.6,671.43,0.2978717]
[1738072607887,2.02804526,672.59,671.43,0.2978717]
[1738072608089,1.158175,672.58,671.43,0.2978717]
[1738072608282,1.158175,672.57,671.43,0.2978717]
[1738072608486,1.158175,672.56,671.43,0.2978717]
[1738072608788,1.158175,672.55,671.43,0.2978717]
[1738072608991,1.158175,672.54,671.43,0.2978717]
[1738072609192,1.158175,672.53,671.43,0.2978717]
[1738072609491,1.158175,672.52,671.45,1.04687993]
[1738072609795,1.158175,672.51,671.45,1.04687993]
[1738072609985,1.158175,672.5,671.45,1.04687993]
[1738072610192,1.158175,672.49,671.45,1.04687993]
[1738072610384,1.158175,672.48,671.45,1.04687993]
[1738072610589,1.158175,672.47,671.45,1.04687993]
[1738072610790,1.158175,672.46,671.45,1.04687993]
[1738072610990,1.158175,672.45,671.45,1.04687993]
[1738072611192,1.158175,672.44,671.45,1.04687993]
[1738072611493,1.158175,672.43,671.45,1.04687993]
[1738072611791,2.02804526,672.42,671.45,1.04687993]
[1738072611991,1.158175,672.41,671.45,1.04687993]
[1738072612188,1.158175,672.4,671.45,1.04687993]
[1738072612392,0.29728283,672.76,671.43,0.2978717]
[1738072612393,2.02804526,672.39,671.43,0.2978717]
[1738072612592,1.158175,672.38,671.43,0.2978717]
[1738072612792,1.158175,672.37,671.43,0.2978717]
[1738072612985,1.158175,672.36,671.43,0.2978717]
[1738072613187,1.158175,672.35,671.43,0.2978717]
[1738072613391,1.158175,672.34,671.43,0.2978717]
[1738072613591,1.158175,672.33,671.43,0.2978717]
[1738072613785,1.158175,672.32,671.43,0.2978717]
[1738072613989,1.158175,672.31,671.43,0.2978717]
[1738072614190,1.158175,672.3,671.43,0.2978717]
[1738072614491,1.158175,672.29,671.43,0.2978717]
[1738072614688,1.158175,672.28,671.43,0.2978717]
[1738072614991,1.158175,672.27,671.43,0.2978717]
[1738072615293,0.86987026,672.28,671.43,0.2978717]
[1738072615294,2.02804526,672.26,671.43,0.2978717]
[1738072615487,1.158175,672.25,671.43,0.2978717]
[1738072615690,1.158175,672.24,671.43,0.2978717]
[1738072615887,1.158175,672.23,671.43,0.2978717]
[1738072616192,1.158175,672.22,671.43,0.2978717]
[1738072616492,1.158175,672.21,671.43,0.2978717]
[1738072616692,1.158175,672.2,671.43,0.2978717]
[1738072616892,0.86987026,672.22,671.43,0.2978717]
[1738072616893,1.158175,672.19,671.43,0.2978717]
[1738072617092,1.158175,672.18,671.43,0.2978717]
[1738072617295,1.158175,672.17,671.43,0.2978717]
[1738072617492,1.158175,672.16,671.43,0.2978717]
[1738072617693,0.86987026,672.18,671.43,0.2978717]
[1738072617694,1.158175,672.15,671.43,0.2978717]
[1738072617895,1.158175,672.14,671.43,0.2978717]
[1738072618089,1.158175,672.13,671.43,0.2978717]
[1738072618293,1.158175,672.12,671.43,0.2978717]
[1738072618594,2.02804526,672.11,671.43,0.2978717]
[1738072618893,1.158175,672.1,671.43,0.2978717]
[1738072619094,1.158175,672.09,671.43,0.2978717]
[1738072619294,1.158175,672.08,671.43,0.2978717]
[1738072619495,1.158175,672.07,671.43,0.2978717]
[1738072619698,1.158175,672.06,671.43,0.2978717]
[1738072619897,1.158175,672.05,671.43,0.2978717]
[1738072620092,1.158175,672.04,671.43,0.2978717]
[1738072620292,0.86987026,672.04,671.43,0.2978717]
[1738072620696,0.86987026,672.46,671.43,0.2978717]
[1738072620892,2.03020135,672.45,671.43,0.2978717]
[1738072621092,1.16033109,672.44,671.43,0.2978717]
[1738072621297,1.43376528,672.43,671.43,0.2978717]
[1738072621497,2.30363554,672.42,671.43,0.2978717]
[1738072621697,2.03020135,672.41,671.43,0.2978717]
[1738072621899,1.16033109,672.4,671.43,0.2978717]
[1738072622194,1.16033109,672.39,671.43,0.2978717]
[1738072622395,2.03020135,672.38,671.43,0.2978717]
[1738072622598,1.16033109,672.37,671.43,0.2978717]
[1738072622798,1.16033109,672.36,671.43,0.2978717]
[1738072622999,1.16033109,672.35,671.43,0.2978717]
[1738072623192,2.03020135,672.34,671.43,0.2978717]
[1738072623394,2.03020135,672.33,671.43,0.2978717]
[1738072623699,1.16033109,672.32,671.43,0.2978717]
[1738072623900,2.03020135,672.31,671.43,0.2978717]
[1738072624097,1.16033109,672.3,671.43,0.2978717]
[1738072624300,1.16033109,672.29,671.43,0.2978717]
[1738072624503,1.16033109,672.28,671.43,0.2978717]
[1738072624800,2.03020135,672.27,671.49,1.04687993]
[1738072625004,1.16033109,672.26,671.49,1.04687993]
[1738072625202,1.16033109,672.25,671.49,1.04687993]
[1738072625504,2.03020135,672.24,671.49,1.04687993]
[1738072625705,1.16033109,672.23,671.49,1.04687993]
[1738072625902,2.03020135,672.22,671.49,1.04687993]
[1738072626097,1.16033109,672.21,671.49,1.04687993]
[1738072626300,1.16033109,672.2,671.49,1.04687993]
[1738072626501,1.16033109,672.19,671.49,1.04687993]
[1738072626702,1.04405922,672.71,671.49,1.04687993]
[1738072626901,1.43493075,672.7,671.49,1.04687993]
[1738072627102,1.43493075,672.69,671.49,1.04687993]
[1738072627303,1.43493075,672.68,671.49,1.04687993]
[1738072627504,1.43493075,672.67,671.48,1.04687993]
[1738072627803,1.16156114,672.66,671.48,1.04687993]
[1738072628002,1.16156114,672.65,671.48,1.04687993]
[1738072628305,1.16156114,672.64,671.48,1.04687993]
[1738072628604,2.03740326,672.63,671.48,1.04687993]
[1738072628806,1.16156114,672.62,671.48,1.04687993]
[1738072629104,1.16156114,672.61,671.48,1.04687993]
[1738072629308,1.16156114,672.6,671.48,1.04687993]
[1738072629507,1.16156114,672.59,671.48,1.04687993]
[1738072629700,1.16156114,672.58,671.48,1.04687993]
[1738072629904,1.16156114,672.57,671.48,1.04687993]
[1738072630102,1.16156114,672.56,671.49,1.04687993]
[1738072630307,1.16156114,672.55,671.49,1.04687993]
[1738072630505,1.16156114,672.54,671.49,1.04687993]
[1738072630706,1.16156114,672.53,671.49,1.04687993]
[1738072630908,1.16156114,672.52,671.49,1.04687993]
[1738072631104,1.16156114,672.51,671.49,1.04687993]
[1738072631311,1.16156114,672.5,671.49,1.04687993]
[1738072631507,1.16156114,672.49,671.49,1.04687993]
[1738072631804,1.16156114,672.48,671.49,1.04687993]
[1738072632010,1.16156114,672.47,671.49,1.04687993]
[1738072632207,1.16156114,672.46,671.49,1.04687993]
[1738072632405,1.16156114,672.45,671.5,0.29784065]
[1738072632608,1.16156114,672.44,671.5,0.29784065]
[1738072632807,1.16156114,672.43,671.52,1.04687993]
[1738072633012,1.16156114,672.42,671.52,1.04687993]
[1738072633206,1.16156114,672.41,671.52,1.04687993]
[1738072633410,1.16156114,672.4,671.53,0.29782734]
[1738072633610,1.16156114,672.39,671.53,0.29782734]
[1738072633811,1.16156114,672.38,671.53,0.29782734]
[1738072634114,1.16156114,672.37,671.53,0.29782734]
[1738072634314,0.87584212,672.38,671.53,0.29782734]
[1738072634514,0.87584212,672.37,671.53,0.29782734]
[1738072635315,0.87584212,672.36,671.53,0.29782734]
[1738072635512,0.87584212,672.36,671.55,1.04687993]
[1738072635708,0.29728283,672.76,671.56,0.29781404]
[1738072635912,1.16245813,672.75,671.56,0.29781404]
[1738072636108,1.16245813,672.74,671.56,0.29781404]
[1738072636312,1.16245813,672.73,671.56,0.29781404]
[1738072636508,1.16245813,672.72,671.56,0.29781404]
[1738072636712,1.16245813,672.71,671.56,0.29781404]
[1738072636913,1.16245813,672.7,671.56,0.29781404]
[1738072637111,1.16245813,672.69,671.56,0.29781404]
[1738072637312,1.16245813,672.68,671.56,0.29781404]
[1738072637509,1.16245813,672.67,671.56,0.29781404]
[1738072637810,1.16218874,672.66,671.56,0.29781404]
[1738072638011,1.16218874,672.65,671.56,0.29781404]
[1738072638213,1.16218874,672.64,671.56,0.29781404]
[1738072638411,1.16218874,672.63,671.56,0.29781404]
[1738072638610,1.16218874,672.62,671.56,0.29781404]
[1738072638815,1.16218874,672.61,671.56,0.29781404]
[1738072639012,1.16218874,672.6,671.56,0.29781404]
[1738072639215,2.0386714,672.59,671.56,0.29781404]
[1738072639416,1.16218874,672.58,671.56,0.29781404]
[1738072639716,2.03845769,672.57,671.56,0.29781404]
[1738072639916,1.16197503,672.56,671.56,0.29781404]
[1738072640217,2.03845769,672.55,671.56,0.29781404]
[1738072640417,1.16197503,672.54,671.56,0.29781404]
[1738072640713,1.16197503,672.53,671.56,0.29781404]
[1738072641016,1.16197503,672.52,671.56,0.29781404]
[1738072641211,1.16197503,672.51,671.56,0.29781404]
[1738072641411,1.16197503,672.5,671.56,0.29781404]
[1738072641613,1.16197503,672.49,671.56,0.29781404]
[1738072641814,1.16162874,672.48,671.56,0.29781404]
[1738072642013,1.16162874,672.47,671.56,0.29781404]
[1738072642218,1.16162874,672.46,671.56,0.29781404]
[1738072642417,1.16162874,672.45,671.56,0.29781404]
[1738072642619,2.03746319,672.44,671.56,0.29781404]
[1738072642812,1.16162874,672.43,671.56,0.29781404]
[1738072643118,0.87583445,672.42,671.56,0.29781404]
[1738072643617,1.1614357,672.41,671.56,0.29781404]
[1738072643817,0.87583445,672.42,671.56,0.29781404]
[1738072645619,0.87583445,672.41,671.56,0.29781404]
[1738072646216,0.29728283,672.76,671.56,0.29781404]
[1738072646414,1.16125166,672.75,671.56,0.29781404]
[1738072646714,2.03682037,672.74,671.56,0.29781404]
[1738072646921,1.16125166,672.73,671.56,0.29781404]
[1738072647119,1.16125166,672.72,671.56,0.29781404]
[1738072647317,1.16125166,672.71,671.56,0.29781404]
[1738072647515,1.16125166,672.7,671.56,0.29781404]
[1738072647713,2.0367252,672.69,671.56,1.34469397]
[1738072647921,1.16115649,672.68,671.56,1.34469397]
[1738072648116,1.16115649,672.67,671.56,1.34469397]
[1738072648311,1.16115649,672.66,671.56,1.34469397]
[1738072648518,0.87556871,672.67,671.56,1.34469397]
[1738072648519,1.16115649,672.65,671.56,1.34469397]
[1738072648719,1.16115649,672.64,671.56,1.34469397]
[1738072648919,1.16115649,672.63,671.56,1.34469397]
[1738072649120,2.0367252,672.62,671.56,1.34469397]
[1738072649321,1.16115649,672.61,671.56,1.34469397]
[1738072649626,1.16115649,672.6,671.56,1.34469397]
[1738072649818,1.16115649,672.59,671.56,1.34469397]
[1738072650025,1.16115649,672.58,671.56,1.34469397]
[1738072650224,1.16115649,672.57,671.56,1.34469397]
[1738072650425,1.16115649,672.56,671.56,1.34469397]
[1738072650624,1.16115649,672.55,671.56,0.29781404]
[1738072650824,1.16115649,672.54,671.56,0.29781404]
[1738072651024,1.16115649,672.53,671.56,0.29781404]
[1738072651224,1.16115649,672.52,671.56,0.29781404]
[1738072651425,1.16115649,672.51,671.56,0.29781404]
[1738072651620,1.16115649,672.5,671.56,0.29781404]
[1738072651825,2.0367252,672.49,671.56,0.29781404]
[1738072652022,1.16115649,672.48,671.56,0.29781404]
[1738072652225,1.16115649,672.47,671.56,0.29781404]
[1738072652421,1.16115649,672.46,671.56,0.29781404]
[1738072652727,0.87556871,672.47,671.56,0.29781404]
[1738072653129,1.55293015,673.04,671.56,0.29781404]
[1738072653324,1.1606417,673.03,671.56,0.29781404]
[1738072653528,1.1606417,673.02,671.56,0.29781404]
[1738072653723,1.1606417,673.01,671.56,0.29781404]
[1738072653923,1.1606417,673.0,671.56,0.29781404]
[1738072654127,1.1606417,672.99,671.56,0.29781404]
[1738072654328,1.1606417,672.98,671.56,0.29781404]
[1738072654524,1.1606417,672.97,671.56,0.29781404]
[1738072654729,1.1606417,672.96,671.56,0.29781404]
[1738072654926,1.1606417,672.95,671.56,0.29781404]
[1738072655126,2.03567865,672.94,671.56,0.29781404]
[1738072655331,1.1606417,672.93,671.56,0.29781404]
[1738072655630,2.03567865,672.92,671.56,0.29781404]
[1738072655833,1.16033171,672.91,671.56,0.29781404]
[1738072656023,1.16033171,672.9,671.56,0.29781404]
[1738072656226,1.16033171,672.89,671.56,0.29781404]
[1738072656425,1.16033171,672.88,671.56,0.29781404]
[1738072656628,1.16033171,672.87,671.56,0.29781404]
[1738072656825,1.16033171,672.86,671.56,0.29781404]
[1738072657130,1.16033171,672.85,671.56,0.29781404]
[1738072657330,1.16033171,672.84,671.56,0.29781404]
[1738072657531,1.16033171,672.83,671.56,0.29781404]
[1738072657727,1.16033171,672.82,671.56,0.29781404]
[1738072657928,1.16033171,672.81,671.56,0.29781404]
[1738072658126,1.16033171,672.8,671.56,0.29781404]
[1738072658431,2.03536866,672.79,671.56,0.29781404]
[1738072658634,1.16033171,672.78,671.56,0.29781404]
[1738072658929,1.16015533,672.77,671.56,0.29781404]
[1738072659131,2.03519228,672.76,671.56,0.29781404]
[1738072659330,1.16015533,672.75,671.56,0.29781404]
[1738072659526,1.16015533,672.74,671.56,0.29781404]
[1738072659728,1.16015533,672.73,671.56,0.29781404]
[1738072659927,1.16015533,672.72,671.56,0.29781404]
[1738072660130,1.16015533,672.71,671.56,0.29781404]
[1738072660331,1.16015533,672.7,671.56,0.29781404]
[1738072660533,1.16015533,672.69,671.56,0.29781404]
[1738072660727,1.16015533,672.68,671.56,0.29781404]
[1738072660930,1.16015533,672.67,671.56,0.29781404]
[1738072661132,1.16015533,672.66,671.56,0.29781404]
[1738072661328,1.16015533,672.65,671.56,0.29781404]
[1738072661633,1.16015533,672.64,671.56,0.29781404]
[1738072661834,1.16015533,672.63,671.56,0.29781404]
[1738072662034,1.16015533,672.62,671.56,0.29781404]
[1738072662232,1.16015533,672.61,671.56,0.29781404]
[1738072662428,1.16015533,672.6,671.56,0.29781404]
[1738072662633,2.03519228,672.59,671.56,0.29781404]
[1738072662834,1.16015533,672.58,671.56,0.29781404]
[1738072663035,1.16015533,672.57,671.56,0.29781404]
[1738072663229,1.16015533,672.56,671.56,0.29781404]
[1738072663428,1.16015533,672.55,671.56,0.29781404]
[1738072663634,1.16015533,672.54,671.56,0.29781404]
[1738072663934,0.87503695,672.56,671.56,0.29781404]
[1738072663935,1.16019699,672.53,671.56,0.29781404]
[1738072664129,2.03523394,672.52,671.56,0.29781404]
[1738072664333,1.16019699,672.51,671.56,0.29781404]
[1738072664536,1.16019699,672.5,671.56,0.29781404]
[1738072664735,2.03523394,672.49,671.56,0.29781404]
[1738072664934,1.16019699,672.48,671.56,0.29781404]
[1738072665135,1.16019699,672.47,671.56,0.29781404]
[1738072665336,0.87503695,672.47,671.84,1.04687993]
[1738072665530,1.16007172,672.46,671.84,1.04687993]
[1738072665730,0.87503695,672.47,671.84,1.04687993]
[1738072665930,0.87503695,672.46,671.84,1.04687993]
[1738072666632,2.59717997,672.93,671.84,1.04687993]
[1738072666833,1.43335062,672.92,671.84,1.04687993]
[1738072667038,1.43335062,672.91,671.84,1.04687993]
[1738072667240,1.16005387,672.9,671.84,1.04687993]
[1738072667438,1.16005387,672.89,671.84,1.04687993]
[1738072667635,2.03475474,672.88,671.84,1.04687993]
[1738072667939,1.16005387,672.87,671.84,1.04687993]
[1738072668141,1.16005387,672.86,671.84,1.04687993]
[1738072668438,1.16005387,672.86,671.58,1.04687993]
[1738072668439,1.16005387,672.85,671.81,1.04687993]